[Event "Late-Titled-Tuesday-Blitz-September-19-2023"]
[Site "Chess.com"]
[Date "2023.09.19"]
[Round "6"]
[White "aNaartjieZA"]
[Black "DvaHrasta"]
[Result "1/2-1/2"]
[WhiteElo "2598"]
[BlackElo "2512"]
[TimeControl "180+1"]
[EndTime "15:05:42 PDT"]
[Termination "Game drawn - insufficient material"]

1. e4 {[%clk 0:03:00.9]} 1... c6 {[%clk 0:02:59.7]} 2. d3 {[%clk 0:03:00.9]}
2... d5 {[%clk 0:02:59.7]} 3. Nd2 {[%clk 0:03:01.5]} 3... g6 {[%clk 0:02:59.2]}
4. Ngf3 {[%clk 0:03:01.4]} 4... Bg4 {[%clk 0:02:58.4]} 5. h3 {[%clk 0:03:01]}
5... Bxf3 {[%clk 0:02:58.1]} 6. Qxf3 {[%clk 0:03:01.2]} 6... Bg7 {[%clk
0:02:58.1]} 7. g3 {[%clk 0:03:01.3]} 7... Nf6 {[%clk 0:02:58.2]} 8. Bg2 {[%clk
0:03:01.3]} 8... O-O {[%clk 0:02:58.4]} 9. O-O {[%clk 0:03:01.5]} 9... a5 {[%clk
0:02:58.6]} 10. a4 {[%clk 0:03:00.6]} 10... Na6 {[%clk 0:02:57.9]} 11. Qe2
{[%clk 0:03:00.4]} 11... e5 {[%clk 0:02:53.8]} 12. Nb3 {[%clk 0:02:48]} 12... h6
{[%clk 0:02:48.4]} 13. Bd2 {[%clk 0:02:47.1]} 13... Nb4 {[%clk 0:02:45]} 14. c3
{[%clk 0:02:32.8]} 14... Na6 {[%clk 0:02:44.1]} 15. Be3 {[%clk 0:02:26.6]} 15...
Re8 {[%clk 0:02:35.5]} 16. Rfd1 {[%clk 0:02:24.8]} 16... Qc7 {[%clk 0:02:32.3]}
17. Qc2 {[%clk 0:02:10.4]} 17... b6 {[%clk 0:02:28.8]} 18. f4 {[%clk 0:02:00.4]}
18... exf4 {[%clk 0:02:23.9]} 19. gxf4 {[%clk 0:02:00]} 19... dxe4 {[%clk
0:02:23.8]} 20. dxe4 {[%clk 0:02:00.1]} 20... Rad8 {[%clk 0:02:12.5]} 21. Qf2
{[%clk 0:01:57.6]} 21... c5 {[%clk 0:02:06]} 22. e5 {[%clk 0:01:40.7]} 22... Nh7
{[%clk 0:02:00.5]} 23. Bf1 {[%clk 0:01:36.2]} 23... Nb8 {[%clk 0:01:48.2]} 24.
Bb5 {[%clk 0:01:35.9]} 24... Rxd1+ {[%clk 0:01:45.4]} 25. Rxd1 {[%clk
0:01:36.4]} 25... Rd8 {[%clk 0:01:45.4]} 26. Rxd8+ {[%clk 0:01:33.6]} 26... Qxd8
{[%clk 0:01:45.5]} 27. Qd2 {[%clk 0:01:33.3]} 27... Qxd2 {[%clk 0:01:36.9]} 28.
Nxd2 {[%clk 0:01:32.9]} 28... Bf8 {[%clk 0:01:30]} 29. Nc4 {[%clk 0:01:32.6]}
29... g5 {[%clk 0:01:21]} 30. Nxb6 {[%clk 0:01:30.1]} 30... gxf4 {[%clk
0:01:19.4]} 31. Bxf4 {[%clk 0:01:29.9]} 31... Ng5 {[%clk 0:01:18.8]} 32. Bxg5
{[%clk 0:01:28.9]} 32... hxg5 {[%clk 0:01:18.2]} 33. Kg2 {[%clk 0:01:27.2]}
33... Bg7 {[%clk 0:01:12.1]} 34. Nc4 {[%clk 0:01:25.9]} 34... Kf8 {[%clk
0:01:12.1]} 35. Kf3 {[%clk 0:01:25.8]} 35... Ke7 {[%clk 0:01:10.3]} 36. Ke4
{[%clk 0:01:25.8]} 36... f6 {[%clk 0:01:03.6]} 37. exf6+ {[%clk 0:01:25.5]}
37... Kxf6 {[%clk 0:01:01.5]} 38. Nxa5 {[%clk 0:01:25.6]} 38... Bf8 {[%clk
0:00:54.6]} 39. Nc4 {[%clk 0:01:21.1]} 39... Ke6 {[%clk 0:00:43.1]} 40. a5
{[%clk 0:01:20.2]} 40... Nd7 {[%clk 0:00:39.8]} 41. a6 {[%clk 0:01:07]} 41...
Nf6+ {[%clk 0:00:38.7]} 42. Kf3 {[%clk 0:01:04.8]} 42... Nd5 {[%clk 0:00:36.3]}
43. a7 {[%clk 0:01:04.5]} 43... Nc7 {[%clk 0:00:34.5]} 44. Bc6 {[%clk
0:01:03.8]} 44... Bg7 {[%clk 0:00:27.6]} 45. a8=Q {[%clk 0:01:01.4]} 45... Nxa8
{[%clk 0:00:27.6]} 46. Bxa8 {[%clk 0:01:01.4]} 46... Bf6 {[%clk 0:00:23.7]} 47.
Ke4 {[%clk 0:00:58.3]} 47... Bg7 {[%clk 0:00:22]} 48. Bd5+ {[%clk 0:00:58.1]}
48... Kf6 {[%clk 0:00:20.4]} 49. Ne5 {[%clk 0:00:54]} 49... Ke7 {[%clk
0:00:17.5]} 50. Kf5 {[%clk 0:00:49.5]} 50... Kd6 {[%clk 0:00:17.1]} 51. Nf3
{[%clk 0:00:42.9]} 51... Kxd5 {[%clk 0:00:16.6]} 52. Kxg5 {[%clk 0:00:41]} 52...
Kc4 {[%clk 0:00:16]} 53. Kg6 {[%clk 0:00:36.4]} 53... Bh8 {[%clk 0:00:15.2]} 54.
h4 {[%clk 0:00:23.1]} 54... Kb3 {[%clk 0:00:15.1]} 55. Nd2+ {[%clk 0:00:19]}
55... Kxb2 {[%clk 0:00:12.8]} 56. Ne4 {[%clk 0:00:19.3]} 56... c4 {[%clk
0:00:11.3]} 57. h5 {[%clk 0:00:18.8]} 57... Kc2 {[%clk 0:00:11.5]} 58. h6 {[%clk
0:00:18.6]} 58... Kd3 {[%clk 0:00:10.9]} 59. Ng5 {[%clk 0:00:17.2]} 59... Bxc3
{[%clk 0:00:05.3]} 60. Nh7 {[%clk 0:00:16.3]} 60... Bh8 {[%clk 0:00:04.3]} 61.
Nf8 {[%clk 0:00:16.4]} 61... c3 {[%clk 0:00:04.5]} 62. Ne6 {[%clk 0:00:16.8]}
62... c2 {[%clk 0:00:04.6]} 63. Ng7 {[%clk 0:00:16.5]} 63... c1=Q {[%clk
0:00:04.1]} 64. Kh7 {[%clk 0:00:17]} 64... Qh1 {[%clk 0:00:01.4]} 65. Kg6 {[%clk
0:00:16.4]} 65... Qxh6+ {[%clk 0:00:01.4]} 66. Kxh6 {[%clk 0:00:16.6]} 1/2-1/2

[Event "Late-Titled-Tuesday-Blitz-September-19-2023"]
[Site "Chess.com"]
[Date "2023.09.19"]
[Round "6"]
[White "atigerman"]
[Black "hansen"]
[Result "1-0"]
[WhiteElo "2698"]
[BlackElo "2922"]
[TimeControl "180+1"]
[EndTime "15:05:45 PDT"]
[Termination "atigerman won on time"]

1. e4 {[%clk 0:02:49.9]} 1... e5 {[%clk 0:02:59.5]} 2. Nf3 {[%clk 0:02:47.7]}
2... Nc6 {[%clk 0:02:57.8]} 3. Nc3 {[%clk 0:02:48.2]} 3... Nf6 {[%clk
0:02:51.9]} 4. Bb5 {[%clk 0:02:48.8]} 4... Bd6 {[%clk 0:02:48.8]} 5. g4 {[%clk
0:02:47.7]} 5... a6 {[%clk 0:02:37.2]} 6. Bc4 {[%clk 0:02:43.9]} 6... b5 {[%clk
0:02:35.5]} 7. Bb3 {[%clk 0:02:41]} 7... h6 {[%clk 0:02:15.5]} 8. d3 {[%clk
0:02:34.2]} 8... Na5 {[%clk 0:02:11.2]} 9. Rg1 {[%clk 0:02:32.2]} 9... Bb7
{[%clk 0:01:23]} 10. g5 {[%clk 0:02:29.6]} 10... hxg5 {[%clk 0:01:23.9]} 11.
Bxg5 {[%clk 0:02:29.3]} 11... Nxb3 {[%clk 0:01:19.9]} 12. axb3 {[%clk
0:02:27.9]} 12... Qe7 {[%clk 0:01:16.8]} 13. Nh4 {[%clk 0:02:27.7]} 13... Qe6
{[%clk 0:01:10]} 14. Nf5 {[%clk 0:02:19.1]} 14... Bf8 {[%clk 0:01:10.3]} 15. h4
{[%clk 0:02:13.1]} 15... g6 {[%clk 0:01:08.7]} 16. Ne3 {[%clk 0:02:10.7]} 16...
c6 {[%clk 0:00:48.8]} 17. Qf3 {[%clk 0:02:09.2]} 17... Nh7 {[%clk 0:00:48.2]}
18. Ng4 {[%clk 0:01:56.3]} 18... f5 {[%clk 0:00:39.8]} 19. Ne3 {[%clk
0:01:50.1]} 19... f4 {[%clk 0:00:37]} 20. Ng4 {[%clk 0:01:47.8]} 20... Nxg5
{[%clk 0:00:37.4]} 21. hxg5 {[%clk 0:01:48.7]} 21... Be7 {[%clk 0:00:37.9]} 22.
O-O-O {[%clk 0:01:45.7]} 22... b4 {[%clk 0:00:30.7]} 23. Na4 {[%clk 0:01:38.7]}
23... c5 {[%clk 0:00:25]} 24. Nf6+ {[%clk 0:01:38.3]} 24... Kf7 {[%clk
0:00:24.7]} 25. Rh1 {[%clk 0:01:35.2]} 25... Bxf6 {[%clk 0:00:20.8]} 26. gxf6
{[%clk 0:01:32.9]} 26... d6 {[%clk 0:00:20.4]} 27. Nb6 {[%clk 0:01:28.6]} 27...
Rad8 {[%clk 0:00:19.9]} 28. Rdg1 {[%clk 0:01:25.1]} 28... Qxf6 {[%clk 0:00:15]}
29. Qg4 {[%clk 0:01:22.9]} 29... Bc6 {[%clk 0:00:14.6]} 30. Kd2 {[%clk
0:00:43.6]} 30... Rxh1 {[%clk 0:00:14.1]} 31. Rxh1 {[%clk 0:00:43.5]} 31... Rh8
{[%clk 0:00:14.8]} 32. Nd5 {[%clk 0:00:27.9]} 32... Qg7 {[%clk 0:00:14.1]} 33.
Rg1 {[%clk 0:00:27.3]} 33... Re8 {[%clk 0:00:05.3]} 34. Qg5 {[%clk 0:00:22.8]}
34... Bxd5 {[%clk 0:00:04.5]} 35. exd5 {[%clk 0:00:23]} 35... Qf6 {[%clk
0:00:03.9]} 36. Qg2 {[%clk 0:00:14]} 36... e4 {[%clk 0:00:04]} 37. Qh3 {[%clk
0:00:12.8]} 37... e3+ {[%clk 0:00:02.5]} 38. Ke2 {[%clk 0:00:07]} 38... exf2+
{[%clk 0:00:02.4]} 39. Kxf2 {[%clk 0:00:07.9]} 39... Kg7 {[%clk 0:00:02.2]} 40.
Rh1 {[%clk 0:00:06.7]} 40... Qd4+ {[%clk 0:00:02]} 41. Kf1 {[%clk 0:00:05.6]}
41... Qe5 {[%clk 0:00:02]} 42. Qh6+ {[%clk 0:00:03.4]} 42... Kf6 {[%clk
0:00:02.1]} 43. Qh4+ {[%clk 0:00:04]} 43... Qg5 {[%clk 0:00:02.6]} 44. Qh3
{[%clk 0:00:02.2]} 44... Re3 {[%clk 0:00:01.8]} 45. Qd7 {[%clk 0:00:01.7]} 45...
Rf3+ {[%clk 0:00:01.9]} 46. Ke1 {[%clk 0:00:02]} 46... Qg3+ {[%clk 0:00:02.2]}
47. Kd1 {[%clk 0:00:02.5]} 47... Re3 {[%clk 0:00:02.1]} 48. Qxd6+ {[%clk
0:00:02.7]} 48... Kg5 {[%clk 0:00:02.2]} 49. Qd8+ {[%clk 0:00:03.2]} 49... Kg4
{[%clk 0:00:02.8]} 50. Qd7+ {[%clk 0:00:02.8]} 50... Kf3 {[%clk 0:00:03.2]} 51.
Rh3 {[%clk 0:00:02.8]} 51... g5 {[%clk 0:00:02.7]} 52. Rxg3+ {[%clk 0:00:02.3]}
52... Kxg3 {[%clk 0:00:03.2]} 53. Qf5 {[%clk 0:00:02.7]} 53... g4 {[%clk
0:00:03.5]} 54. d6 {[%clk 0:00:03.4]} 54... f3 {[%clk 0:00:04.1]} 55. d7 {[%clk
0:00:04.1]} 55... f2 {[%clk 0:00:04.7]} 56. d8=Q {[%clk 0:00:04.1]} 56... Re1+
{[%clk 0:00:04.6]} 57. Kd2 {[%clk 0:00:04.8]} 57... f1=Q {[%clk 0:00:05.5]} 58.
Qxf1 {[%clk 0:00:05.2]} 58... Rxf1 {[%clk 0:00:06.4]} 59. Qd6+ {[%clk
0:00:05.8]} 59... Kh3 {[%clk 0:00:06.1]} 60. Qxc5 {[%clk 0:00:06.7]} 60... g3
{[%clk 0:00:06.6]} 61. Qh5+ {[%clk 0:00:07.4]} 61... Kg2 {[%clk 0:00:06.8]} 62.
d4 {[%clk 0:00:08.3]} 62... Rf2+ {[%clk 0:00:06.2]} 63. Ke3 {[%clk 0:00:09]}
63... Kg1 {[%clk 0:00:05.1]} 64. Qh4 {[%clk 0:00:08.9]} 64... Rg2 {[%clk
0:00:04.6]} 65. d5 {[%clk 0:00:09.2]} 65... Kf1 {[%clk 0:00:02]} 66. Qh1+ {[%clk
0:00:09.5]} 1-0

[Event "Late-Titled-Tuesday-Blitz-September-19-2023"]
[Site "Chess.com"]
[Date "2023.09.19"]
[Round "6"]
[White "ilya2700"]
[Black "GiorgianBarbosa"]
[Result "0-1"]
[WhiteElo "2292"]
[BlackElo "2454"]
[TimeControl "180+1"]
[EndTime "15:05:52 PDT"]
[Termination "GiorgianBarbosa won on time"]

1. c4 {[%clk 0:03:00.9]} 1... Nf6 {[%clk 0:02:25.5]} 2. Nc3 {[%clk 0:02:59.8]}
2... e6 {[%clk 0:02:24.9]} 3. e4 {[%clk 0:02:59.7]} 3... d5 {[%clk 0:02:25]} 4.
cxd5 {[%clk 0:03:00.6]} 4... exd5 {[%clk 0:02:25.2]} 5. e5 {[%clk 0:03:01.4]}
5... d4 {[%clk 0:02:25.8]} 6. exf6 {[%clk 0:03:02]} 6... dxc3 {[%clk 0:02:25.9]}
7. Bb5+ {[%clk 0:03:02.7]} 7... Nc6 {[%clk 0:02:22.8]} 8. Qe2+ {[%clk
0:02:56.5]} 8... Be6 {[%clk 0:02:22.5]} 9. Bc4 {[%clk 0:02:56.9]} 9... cxd2+
{[%clk 0:02:21.6]} 10. Bxd2 {[%clk 0:02:55.8]} 10... Nd4 {[%clk 0:02:21.6]} 11.
Qe4 {[%clk 0:02:37.7]} 11... Qxf6 {[%clk 0:02:02.5]} 12. Bxe6 {[%clk 0:02:26.1]}
12... Qxe6 {[%clk 0:02:01.9]} 13. Qxe6+ {[%clk 0:02:25.3]} 13... Nxe6 {[%clk
0:02:02.8]} 14. O-O-O {[%clk 0:02:23.4]} 14... O-O-O {[%clk 0:02:02.2]} 15. Nf3
{[%clk 0:02:22.1]} 15... Bc5 {[%clk 0:02:00.6]} 16. Ne5 {[%clk 0:02:16.6]} 16...
Rhf8 {[%clk 0:01:51.9]} 17. f4 {[%clk 0:02:11.3]} 17... f6 {[%clk 0:01:43.5]}
18. Nc4 {[%clk 0:02:08]} 18... Nd4 {[%clk 0:01:39.1]} 19. Rde1 {[%clk
0:02:05.3]} 19... Rfe8 {[%clk 0:01:37.8]} 20. Rxe8 {[%clk 0:02:00.7]} 20... Rxe8
{[%clk 0:01:38.7]} 21. Re1 {[%clk 0:02:00.9]} 21... Rxe1+ {[%clk 0:01:36.2]} 22.
Bxe1 {[%clk 0:02:01.8]} 22... Ne2+ {[%clk 0:01:36.7]} 23. Kd2 {[%clk 0:02:01.1]}
23... Nxf4 {[%clk 0:01:37.1]} 24. g3 {[%clk 0:02:01.4]} 24... Nd5 {[%clk
0:01:28.3]} 25. Kd3 {[%clk 0:02:01.5]} 25... Nb4+ {[%clk 0:01:26]} 26. Bxb4
{[%clk 0:01:55.3]} 26... Bxb4 {[%clk 0:01:26.9]} 27. Ne3 {[%clk 0:01:54.7]}
27... g6 {[%clk 0:01:24.4]} 28. Nd5 {[%clk 0:01:52.4]} 28... Bf8 {[%clk
0:01:14.7]} 29. Nxf6 {[%clk 0:01:50.9]} 29... h5 {[%clk 0:01:15.6]} 30. b3
{[%clk 0:01:45.9]} 30... c5 {[%clk 0:01:11.4]} 31. Kc4 {[%clk 0:01:44.2]} 31...
Kc7 {[%clk 0:01:09.5]} 32. Kd5 {[%clk 0:01:42.7]} 32... b5 {[%clk 0:01:06]} 33.
Ne4 {[%clk 0:01:42.3]} 33... Kb6 {[%clk 0:01:03.5]} 34. Nf6 {[%clk 0:01:35.3]}
34... Ka5 {[%clk 0:00:54.8]} 35. Nd7 {[%clk 0:01:34.3]} 35... Be7 {[%clk
0:00:55.1]} 36. Nxc5 {[%clk 0:01:31.4]} 36... Kb4 {[%clk 0:00:55.4]} 37. Na6+
{[%clk 0:01:18.9]} 37... Ka3 {[%clk 0:00:52.7]} 38. Kc6 {[%clk 0:01:11.5]} 38...
Kxa2 {[%clk 0:00:42.7]} 39. Kxb5 {[%clk 0:01:09]} 39... Kxb3 {[%clk 0:00:43]}
40. Nc7 {[%clk 0:01:08.5]} 40... Kc2 {[%clk 0:00:39.8]} 41. Ne6 {[%clk 0:01:09]}
41... Bd6 {[%clk 0:00:35.8]} 42. Kc6 {[%clk 0:01:06.8]} 42... Be5 {[%clk
0:00:30.2]} 43. Kd5 {[%clk 0:01:04]} 43... Bb8 {[%clk 0:00:29.6]} 44. Nf8 {[%clk
0:01:01.3]} 44... g5 {[%clk 0:00:27.5]} 45. Nh7 {[%clk 0:00:58.2]} 45... a5
{[%clk 0:00:22.5]} 46. Kc4 {[%clk 0:00:57]} 46... Bd6 {[%clk 0:00:19.1]} 47. Kb5
{[%clk 0:00:48.6]} 47... Be7 {[%clk 0:00:18.8]} 48. Kxa5 {[%clk 0:00:45.4]}
48... Kd3 {[%clk 0:00:18.8]} 49. Kb5 {[%clk 0:00:44]} 49... Ke4 {[%clk
0:00:17.5]} 50. Kc6 {[%clk 0:00:44.5]} 50... Kf5 {[%clk 0:00:09.8]} 51. Kd7
{[%clk 0:00:44.6]} 51... Bc5 {[%clk 0:00:08.1]} 52. Ke8 {[%clk 0:00:37.7]} 52...
g4 {[%clk 0:00:05.8]} 53. Kf7 {[%clk 0:00:35.5]} 53... Bg1 {[%clk 0:00:06.3]}
54. Nf6 {[%clk 0:00:36.1]} 54... Kg5 {[%clk 0:00:05.2]} 55. Nh7+ {[%clk
0:00:32.6]} 55... Kh6 {[%clk 0:00:05.7]} 56. Nf6 {[%clk 0:00:32.9]} 56... Bxh2
{[%clk 0:00:06.2]} 57. Ne4 {[%clk 0:00:32.5]} 57... Bxg3 {[%clk 0:00:04.9]} 58.
Nxg3 {[%clk 0:00:32]} 58... h4 {[%clk 0:00:05.7]} 59. Nf5+ {[%clk 0:00:07.3]}
59... Kg5 {[%clk 0:00:05.4]} 60. Ke6 {[%clk 0:00:08.2]} 60... g3 {[%clk
0:00:05.5]} 61. Ke5 {[%clk 0:00:05.8]} 61... g2 {[%clk 0:00:04.5]} 62. Nd4
{[%clk 0:00:05.5]} 62... Kg4 {[%clk 0:00:04.1]} 63. Ne2 {[%clk 0:00:04.7]} 63...
h3 {[%clk 0:00:04.2]} 0-1

[Event "Late-Titled-Tuesday-Blitz-September-19-2023"]
[Site "Chess.com"]
[Date "2023.09.19"]
[Round "6"]
[White "JoakimVonAnd"]
[Black "kuli4ik"]
[Result "0-1"]
[WhiteElo "2721"]
[BlackElo "2960"]
[TimeControl "180+1"]
[EndTime "15:05:53 PDT"]
[Termination "kuli4ik won by resignation"]

1. d4 {[%clk 0:03:00.9]} 1... g6 {[%clk 0:02:59.3]} 2. Nf3 {[%clk 0:03:01.4]}
2... Bg7 {[%clk 0:02:58.5]} 3. g3 {[%clk 0:03:01.7]} 3... d6 {[%clk 0:02:58.5]}
4. Bg2 {[%clk 0:03:01.8]} 4... Nd7 {[%clk 0:02:59]} 5. O-O {[%clk 0:03:02]} 5...
e5 {[%clk 0:02:59.1]} 6. e4 {[%clk 0:02:55.6]} 6... Ne7 {[%clk 0:02:58.4]} 7.
Nc3 {[%clk 0:02:46]} 7... O-O {[%clk 0:02:57.2]} 8. h3 {[%clk 0:02:36.1]} 8...
exd4 {[%clk 0:02:55.5]} 9. Nxd4 {[%clk 0:02:35.7]} 9... Nc6 {[%clk 0:02:56]} 10.
Be3 {[%clk 0:02:29.7]} 10... Nde5 {[%clk 0:02:54.4]} 11. Qe2 {[%clk 0:02:21.4]}
11... Nxd4 {[%clk 0:02:52.3]} 12. Bxd4 {[%clk 0:02:21.6]} 12... Nf3+ {[%clk
0:02:52.7]} 13. Qxf3 {[%clk 0:02:20.7]} 13... Bxd4 {[%clk 0:02:53.6]} 14. Rad1
{[%clk 0:02:21]} 14... Bg7 {[%clk 0:02:52]} 15. Rfe1 {[%clk 0:02:21.4]} 15...
Re8 {[%clk 0:02:46.8]} 16. b3 {[%clk 0:02:19.5]} 16... c6 {[%clk 0:02:36.4]} 17.
Nb1 {[%clk 0:02:10.8]} 17... Be6 {[%clk 0:02:25.5]} 18. Qd3 {[%clk 0:02:11]}
18... Qa5 {[%clk 0:02:22.3]} 19. a4 {[%clk 0:02:04.8]} 19... Rad8 {[%clk
0:02:21.1]} 20. Nd2 {[%clk 0:02:04.9]} 20... Qc3 {[%clk 0:02:12.6]} 21. Qxc3
{[%clk 0:01:55.4]} 21... Bxc3 {[%clk 0:02:13.5]} 22. Re3 {[%clk 0:01:56.1]}
22... Ba5 {[%clk 0:01:34.6]} 23. Rd3 {[%clk 0:01:51.4]} 23... d5 {[%clk
0:01:30.1]} 24. exd5 {[%clk 0:01:50.4]} 24... Bf5 {[%clk 0:01:29.8]} 25. Re3
{[%clk 0:01:27.1]} 25... Rxe3 {[%clk 0:01:13.6]} 26. fxe3 {[%clk 0:01:27]} 26...
cxd5 {[%clk 0:01:13]} 27. Nf1 {[%clk 0:01:15.1]} 27... Bxc2 {[%clk 0:01:08.7]}
28. Rxd5 {[%clk 0:01:15.1]} 28... Rxd5 {[%clk 0:01:06.3]} 29. Bxd5 {[%clk
0:01:16]} 29... Kf8 {[%clk 0:00:58.7]} 30. Kf2 {[%clk 0:01:15]} 30... Ke7 {[%clk
0:00:57.8]} 31. Ke2 {[%clk 0:01:13.5]} 31... f5 {[%clk 0:00:44.4]} 32. Nd2
{[%clk 0:01:12.2]} 32... Bc7 {[%clk 0:00:43.9]} 33. g4 {[%clk 0:01:06.2]} 33...
b6 {[%clk 0:00:42.6]} 34. Nf3 {[%clk 0:00:57]} 34... fxg4 {[%clk 0:00:38.8]} 35.
hxg4 {[%clk 0:00:57.9]} 35... Bb1 {[%clk 0:00:20.2]} 36. Bg8 {[%clk 0:00:54.2]}
36... h5 {[%clk 0:00:19.9]} 37. gxh5 {[%clk 0:00:55.1]} 37... gxh5 {[%clk
0:00:20.8]} 38. Kf2 {[%clk 0:00:55.8]} 38... Kf6 {[%clk 0:00:19.7]} 39. Bd5
{[%clk 0:00:55.8]} 39... Bc2 {[%clk 0:00:19.3]} 40. Nd4 {[%clk 0:00:54.1]} 40...
Bb1 {[%clk 0:00:18.1]} 41. Nf3 {[%clk 0:00:52.8]} 41... Bd6 {[%clk 0:00:16.4]}
42. Kg2 {[%clk 0:00:47.2]} 42... Bf5 {[%clk 0:00:15.7]} 43. Kf2 {[%clk
0:00:46.4]} 43... Bd7 {[%clk 0:00:14.9]} 44. Kg2 {[%clk 0:00:42.3]} 44... a5
{[%clk 0:00:14.3]} 45. Kf2 {[%clk 0:00:42.7]} 45... Bc5 {[%clk 0:00:14.3]} 46.
Ke2 {[%clk 0:00:41.6]} 46... Bg4 {[%clk 0:00:13.3]} 47. Kf2 {[%clk 0:00:42.2]}
47... Bd7 {[%clk 0:00:13]} 48. Ke2 {[%clk 0:00:42.2]} 48... Kf5 {[%clk
0:00:13.5]} 49. Kf2 {[%clk 0:00:41.1]} 49... Be7 {[%clk 0:00:13.9]} 50. Kg3
{[%clk 0:00:40.7]} 50... Be8 {[%clk 0:00:11.9]} 51. e4+ {[%clk 0:00:35.8]} 51...
Kf6 {[%clk 0:00:10.8]} 52. e5+ {[%clk 0:00:30.6]} 52... Kf5 {[%clk 0:00:10.2]}
53. e6 {[%clk 0:00:30.4]} 53... Kf6 {[%clk 0:00:07]} 54. Bc4 {[%clk 0:00:29.8]}
54... Kf5 {[%clk 0:00:06.2]} 55. Bd5 {[%clk 0:00:28.3]} 55... Bf6 {[%clk
0:00:06.4]} 56. Bc4 {[%clk 0:00:26.9]} 56... Bc6 {[%clk 0:00:06.8]} 57. Nh4+
{[%clk 0:00:26.4]} 57... Ke5 {[%clk 0:00:06.3]} 58. Ng6+ {[%clk 0:00:26.5]}
58... Kd6 {[%clk 0:00:06.7]} 59. Nf4 {[%clk 0:00:23.1]} 59... h4+ {[%clk
0:00:06.7]} 60. Kh3 {[%clk 0:00:23.6]} 60... Be4 {[%clk 0:00:07]} 61. Bd3 {[%clk
0:00:22.5]} 61... Bxd3 {[%clk 0:00:06.9]} 62. Nxd3 {[%clk 0:00:23.4]} 62... Kxe6
{[%clk 0:00:07.6]} 63. Nf4+ {[%clk 0:00:16.7]} 63... Ke5 {[%clk 0:00:07.8]} 64.
Ng6+ {[%clk 0:00:13.1]} 64... Kd4 {[%clk 0:00:07.9]} 65. Nf8 {[%clk 0:00:13.3]}
65... Kc3 {[%clk 0:00:07.7]} 66. Nd7 {[%clk 0:00:14.2]} 66... Bd8 {[%clk
0:00:07.9]} 67. Nb8 {[%clk 0:00:09.6]} 67... Kxb3 {[%clk 0:00:07.6]} 68. Nc6
{[%clk 0:00:10.1]} 68... Bf6 {[%clk 0:00:08.1]} 69. Kg4 {[%clk 0:00:10.1]} 69...
Kxa4 {[%clk 0:00:08.5]} 0-1